fUST/lending_fUST_20240924
["ID","MTS","AMOUNT","RATE_DAILY","PERIOD"]
[339040812,1727166643789,-503.39741552,0.00032876,14]
[339040813,1727166643800,-500.9664845,0.00032876,14]
[339040814,1727166643810,-500.0,0.00032876,14]
[339040815,1727166643819,-500.0,0.00032876,14]
[339040816,1727166643829,-500.0,0.00032876,14]
[339040817,1727166643838,-519.16031092,0.00032876,14]
[339040818,1727166643848,-576.96,0.00032876,7]
[339040819,1727166643858,-453.49026575,0.00032876,14]
[339040820,1727166643868,-607.38,0.00032876,14]
[339040821,1727166643877,-500.0,0.00032876,14]
[339040822,1727166643886,-500.0,0.00032876,14]
[339040823,1727166643895,-317.06107184,0.00032876,14]
[339040824,1727166643904,-500.0,0.00032876,14]
[339040825,1727166643915,-500.0,0.00032876,14]
[339040826,1727166643924,-506.67560038,0.00032876,14]
[339040827,1727166643933,-500.0,0.00032876,14]
[339040828,1727166643943,-500.0,0.00032876,14]
[339040829,1727166643952,-500.0,0.00032876,14]
[339040830,1727166643962,-502.85870588,0.00032876,14]
[339040831,1727166643971,-500.0,0.00032876,14]
[339040832,1727166643981,-500.0,0.00032876,14]
[339040833,1727166643991,-500.0,0.00032876,14]
[339040834,1727166644001,-5742.68,0.00032876,7]
[339040835,1727166644011,-500.0,0.00032876,14]
[339040836,1727166644022,-500.0,0.00032876,14]
[339040837,1727166644032,-511.78589496,0.00032876,14]
[339040838,1727166644042,-500.0,0.00032876,14]
[339040839,1727166644053,-500.0,0.00032876,14]
[339040840,1727166644062,-500.0,0.00032876,14]
[339040841,1727166644072,-151.0,0.00032876,7]
[339040842,1727166644082,-151.0,0.00032876,7]
[339040843,1727166644091,-500.0,0.00032876,14]
[339040844,1727166644101,-515.45512892,0.00032876,14]
[339040845,1727166644110,-616.68,0.00032876,14]
[339040846,1727166644120,-500.0,0.00032876,14]
[339040847,1727166644129,-501.88673691,0.00032876,14]
[339040848,1727166644138,-500.0,0.00032876,14]
[339040849,1727166644147,-1000.0,0.00032876,2]
[339040850,1727166644156,-1000.0,0.00032876,2]
[339040851,1727166644166,-1000.0,0.00032876,2]
[339040852,1727166644175,-1000.0,0.00032876,2]
[339040853,1727166644184,-537.33617043,0.00032876,2]
[339040854,1727166644194,-505.15003238,0.00032876,14]
[339040855,1727166644203,-500.0,0.00032876,14]
[339040856,1727166644212,-151.0,0.00032876,7]
[339040857,1727166644221,-151.0,0.00032876,7]
[339040858,1727166644230,-619.12858028,0.00032876,14]
[339040859,1727166644240,-500.0,0.00032876,14]
[339040860,1727166644249,-500.0,0.00032876,14]
[339040861,1727166644258,-500.0,0.00032876,14]
[339040862,1727166644268,-2022.01,0.00032876,14]
[339040863,1727166644277,-474.94507989,0.00032876,14]
[339040864,1727166644286,-500.0,0.00032876,14]
[339040865,1727166644296,-611.02389795,0.00032876,14]
[339040866,1727166644305,-223.2215077,0.00032876,14]
[339040867,1727166644316,-151.0,0.00032876,7]
[339040868,1727166644325,-507.42496118,0.00032876,14]
[339040869,1727166644335,-500.0,0.00032876,14]
[339040870,1727166644345,-151.0,0.00032876,7]
[339040871,1727166644355,-500.86454985,0.00032876,14]
[339040872,1727166644364,-151.0,0.00032876,7]
[339040873,1727166644373,-1246.53,0.00032876,14]
[339040874,1727166644383,-581.42176544,0.00032876,14]
[339040875,1727166644393,-500.0,0.00032876,14]
[339040876,1727166644402,-500.0,0.00032876,14]
[339040877,1727166644412,-514.7760318,0.00032876,14]
[339040878,1727166644422,-500.0,0.00032876,14]
[339040879,1727166644431,-502.44081496,0.00032876,14]
[339040880,1727166644441,-502.14106273,0.00032876,14]
[339040881,1727166644450,-151.0,0.00032876,7]
[339040882,1727166644459,-151.0,0.00032876,7]
[339040883,1727166644470,-606.85237524,0.00032876,14]
[339040884,1727166644478,-500.0,0.00032876,14]
[339040885,1727166644489,-501.26361376,0.00032876,14]
[339040886,1727166644498,-500.0,0.00032876,14]
[339040887,1727166644507,-500.0,0.00032876,14]
[339040888,1727166644593,-500.0,0.00032876,14]
[339040889,1727166644603,-507.63939193,0.00032876,14]
[339040890,1727166644612,-500.0,0.00032876,14]
[339040891,1727166644621,-151.0,0.00032876,7]
[339040892,1727166644631,-392.312935,0.00032876,7]
[339040893,1727166644640,-392.312935,0.00032876,7]
[339040894,1727166644649,-882.06,0.00032876,7]
[339040895,1727166644658,-501.11837324,0.00032876,14]
[339040896,1727166644669,-500.0,0.00032876,14]
[339040897,1727166644681,-508.47641884,0.00032876,14]
[339040898,1727166644690,-500.0,0.00032876,14]
[339040899,1727166644699,-503.13761805,0.00032876,14]
[339040900,1727166644709,-500.0,0.00032876,14]
[339040901,1727166644718,-392.312935,0.00032876,7]
[339040902,1727166644728,-392.312935,0.00032876,7]
[339040903,1727166644737,-500.0,0.00032876,14]
[339040904,1727166644746,-505.09,0.00032876,14]
[339040905,1727166644756,-500.0,0.00032876,14]
[339040906,1727166644765,-500.0,0.00032876,14]
[339040907,1727166644775,-500.0,0.00032876,14]
[339040908,1727166644784,-501.13183957,0.00032876,14]
[339040909,1727166644793,-500.0,0.00032876,14]
[339040910,1727166644803,-501.94045062,0.00032876,14]
[339040911,1727166644813,-528.98137698,0.00032876,14]
[339040912,1727166644823,-500.0,0.00032876,14]
[339040913,1727166644832,-533.76219512,0.00032876,14]
[339040914,1727166644841,-501.07119201,0.00032876,2]
[339040915,1727166644851,-500.0,0.00032876,14]
[339040916,1727166644860,-500.823188,0.00032876,14]
[339040917,1727166644870,-500.0,0.00032876,14]
[339040918,1727166644879,-503.06342397,0.00032876,14]
[339040919,1727166644889,-506.94841748,0.00032876,14]
[339040920,1727166644898,-151.0,0.00032876,7]
[339040921,1727166644908,-151.0,0.00032876,7]
[339040922,1727166644917,-533.51944095,0.00032876,14]
[339040923,1727166644926,-500.0,0.00032876,14]
[339040924,1727166644936,-500.0,0.00032876,14]
[339040925,1727166644945,-500.0,0.00032876,14]
[339040926,1727166644954,-547.9642561,0.00032876,14]
[339040927,1727166644965,-410.54364765,0.00032876,14]
[339040928,1727166644974,-500.0,0.00032876,14]
[339040929,1727166644984,-500.0,0.00032876,14]
[339040930,1727166644994,-501.90744413,0.00032876,14]
[339040931,1727166645003,-500.0,0.00032876,14]
[339040932,1727166645013,-357.81195375,0.00032876,14]
[339040933,1727166645022,-500.0,0.00032876,14]
[339040934,1727166645032,-151.0,0.00032876,7]
[339040935,1727166645041,-1951.701,0.00032877,120]
[339040936,1727166645051,-237.0,0.0003288,27]
[339040937,1727166645060,-3000.0,0.0003288,13]
[339040938,1727166645069,-3000.0,0.0003289,13]
[339040939,1727166645079,-480.0,0.000329,120]
[339040940,1727166645089,-150.112233,0.000329,5]
[339040941,1727166645098,-150.112233,0.000329,9]
[339040942,1727166645108,-150.112233,0.000329,5]
[339040943,1727166645117,-150.112233,0.000329,6]
[339040944,1727166645128,-150.112233,0.000329,5]
[339040945,1727166645138,-263.79999,0.000329,5]
[339040946,1727166645147,-3000.0,0.000329,13]
[339040947,1727166645157,-1000.0,0.000329,11]
[339040948,1727166645167,-150.0,0.000329,2]
[339040949,1727166645178,-625.0,0.000329,2]
[339040950,1727166645187,-3000.0,0.0003291,13]
[339040952,1727166645198,-3000.0,0.0003292,13]
[339040953,1727166645207,-3000.0,0.0003293,14]
[339040954,1727166645217,-500.0,0.00032931,12]
[339040955,1727166645227,-500.0,0.00032931,12]
[339040956,1727166645236,-3000.0,0.0003294,14]
[339040957,1727166645246,-3000.0,0.0003295,14]
[339040958,1727166645255,-3000.0,0.0003296,14]
[339040959,1727166645265,-3000.0,0.0003297,14]
[339040960,1727166645274,-3000.0,0.0003298,14]
[339040961,1727166645283,-3000.0,0.0003299,14]
[339040962,1727166645293,-198079.26386165,0.00033,120]
[339040963,1727166645303,-567.6571626,0.00033,2]
[339040964,1727166645312,-1188.0,0.00033,2]
[339040965,1727166645321,-150.112233,0.00033,6]
[339040966,1727166645331,-150.112233,0.00033,8]
[339040967,1727166645340,-150.112233,0.00033,5]
[339040968,1727166645350,-150.112233,0.00033,7]
[339040969,1727166645360,-3000.0,0.00033,14]
[339040970,1727166645369,-903.60712108,0.00033,2]
[339040971,1727166645378,-2637.43968906,0.00033,60]
[339040972,1727166645388,-231.80639772,0.00033,30]
[339040973,1727166645397,-153.0,0.00033008,2]
[339040974,1727166645407,-153.0,0.00033008,2]
[339040975,1727166645418,-153.0,0.00033008,2]
[339040976,1727166645427,-3000.0,0.0003301,14]
[339040977,1727166645437,-151.0,0.00033014,120]
[339040978,1727166645447,-3000.0,0.0003302,14]
[339040979,1727166645458,-8350.71413889,0.0003303,15]
[339040980,1727166645468,-3000.0,0.0003303,14]
[339040981,1727166645477,-3000.0,0.0003304,14]
[339040982,1727166645487,-12413.4283679,0.0003305,15]
[339040983,1727166645496,-3000.0,0.0003305,14]
[339040984,1727166645506,-462.99199506,0.00033057,2]
[339040985,1727166645515,-3000.0,0.0003306,14]
[339040986,1727166645525,-3000.0,0.0003307,14]
[339040987,1727166645535,-1723.45005418,0.0003308,14]
[339040988,1727166645567,-1081.42548563,0.0003308,14]
[339040989,1727166645742,-6734.77558985,0.00030768,2]
[339040990,1727166645752,-6734.77558985,0.00030997,2]
[339040991,1727166645762,-6734.77558985,0.00031388,2]
[339040992,1727166645772,-6734.77558985,0.00031632,2]
[339040993,1727166645781,-500.0,0.00032876,2]
[339040994,1727166645790,-510.2550823,0.00032876,14]
[339040995,1727166645802,-151.0,0.00032876,7]
[339040996,1727166645811,-514.17611562,0.00032876,14]
[339040997,1727166645821,-195.12446019,0.0003308,14]
[339040998,1727166645831,-3000.0,0.0003309,14]
[339040999,1727166645841,-153.0,0.000331,2]
[339041000,1727166645850,-153.0,0.000331,2]
[339041001,1727166645860,-153.0,0.000331,2]
[339041002,1727166645870,-356.8764999,0.000331,2]
[339041003,1727166645880,-150.112233,0.000331,8]
[339041004,1727166645890,-150.112233,0.000331,6]
[339041005,1727166645900,-3000.0,0.000331,14]
[339041006,1727166645910,-3000.0,0.0003311,14]
[339041007,1727166645920,-3000.0,0.0003312,14]
[339041008,1727166645930,-3000.0,0.0003313,14]
[339041009,1727166645939,-3000.0,0.0003314,14]
[339041010,1727166645949,-500.0,0.0003315,14]
[339041011,1727166645958,-500.0,0.0003315,14]
[339041012,1727166645968,-500.0,0.0003315,14]
[339041013,1727166645977,-383.54,0.0003315,14]
[339041014,1727166645986,-500.0,0.0003315,14]
[339041015,1727166645996,-617.92473807,0.0003315,14]
[339041016,1727166646005,-506.54402314,0.0003315,14]
[339041017,1727166646014,-500.0,0.0003315,14]
[339041018,1727166646024,-505.2236411,0.0003315,14]
[339041019,1727166646034,-503.5703205,0.0003315,14]
[339041020,1727166646044,-584.73,0.0003315,14]
[339041021,1727166646053,-150.56304325,0.0003315,14]
[339041022,1727166646063,-500.0,0.0003315,14]
[339041023,1727166646073,-500.0,0.0003315,14]
[339041024,1727166646084,-500.0,0.0003315,14]
[339041025,1727166646093,-500.0,0.0003315,14]
[339041026,1727166646103,-505.57485413,0.0003315,14]
[339041027,1727166646111,-500.0,0.0003315,14]
[339041028,1727166646121,-500.0,0.0003315,14]
[339041029,1727166646131,-502.44323256,0.0003315,14]
[339041030,1727166646141,-500.0,0.0003315,14]
[339041031,1727166646150,-506.42002063,0.0003315,14]
[339041032,1727166646159,-500.0,0.0003315,14]
[339041033,1727166646170,-501.32345707,0.0003315,14]
[339041034,1727166646180,-500.0,0.0003315,14]
[339041035,1727166646189,-500.0,0.0003315,14]
[339041036,1727166646198,-500.0,0.0003315,14]
[339041037,1727166646207,-500.0,0.0003315,14]
[339041038,1727166646216,-500.0,0.0003315,14]
[339041039,1727166646225,-505.13923042,0.0003315,14]
[339041040,1727166646234,-500.0,0.0003315,14]
[339041041,1727166646244,-500.0,0.0003315,14]
[339041042,1727166646253,-500.0,0.0003315,14]
[339041043,1727166646262,-500.0,0.0003315,14]
[339041044,1727166646272,-500.0,0.0003315,14]
[339041045,1727166646282,-500.0,0.0003315,14]
[339041046,1727166646293,-500.0,0.0003315,14]
[339041047,1727166646378,-500.0,0.0003315,14]
[339041048,1727166646388,-200.0,0.0003315,7]
[339041049,1727166646397,-500.0,0.0003315,14]
[339041050,1727166646407,-564.18,0.0003315,14]
[339041051,1727166646419,-99.31642572,0.0003315,14]
[339041052,1727166646432,-400.68357428,0.0003315,14]
[339041053,1727166646440,-500.0,0.0003315,14]
[339041054,1727166646450,-497.67809373,0.0003315,14]
[339041055,1727166646459,-500.0,0.0003315,14]
[339041056,1727166646469,-504.52817588,0.0003315,14]
[339041057,1727166646479,-503.77882518,0.0003315,14]
[339041058,1727166646488,-500.0,0.0003315,14]
[339041059,1727166646499,-500.0,0.0003315,14]
[339041060,1727166646509,-500.0,0.0003315,14]
[339041061,1727166646518,-500.0,0.0003315,14]
[339041062,1727166646528,-500.0,0.0003315,14]
[339041063,1727166646539,-500.0,0.0003315,14]
[339041064,1727166646549,-531.04150891,0.0003315,14]
[339041065,1727166646558,-500.0,0.0003315,14]
[339041066,1727166646568,-500.0,0.0003315,14]
[339041067,1727166646577,-500.0,0.0003315,14]
[339041068,1727166646587,-500.0,0.0003315,14]
[339041069,1727166646596,-500.0,0.0003315,14]
[339041070,1727166646605,-151.0,0.0003315,14]
[339041071,1727166646614,-500.0,0.0003315,14]
[339041072,1727166646624,-507.55272155,0.0003315,14]
[339041073,1727166646633,-500.0,0.0003315,14]
[339041074,1727166646642,-500.0,0.0003315,14]
[339041075,1727166646652,-504.27981572,0.0003315,14]
[339041076,1727166646662,-517.74350634,0.0003315,14]
[339041077,1727166646675,-500.0,0.0003315,14]
[339041078,1727166646686,-468.5165479,0.0003315,14]
[339041079,1727166646695,-500.0,0.0003315,14]
[339041080,1727166646704,-502.10737499,0.0003315,14]
[339041081,1727166646715,-500.0,0.0003315,14]
[339041082,1727166646726,-500.0,0.0003315,14]
[339041083,1727166646737,-500.0,0.0003315,14]
[339041084,1727166646747,-384.84980907,0.0003315,14]
[339041085,1727166646759,-151.0,0.0003315,14]
[339041086,1727166646768,-151.0,0.0003315,14]
[339041087,1727166646777,-500.0,0.0003315,10]
[339041088,1727166646786,-151.0,0.0003315,14]
[339041089,1727166646796,-151.0,0.0003315,14]
[339041090,1727166646805,-479.44085404,0.0003315,14]
[339041091,1727166646814,-510.03243293,0.0003315,14]
[339041092,1727166646823,-500.0,0.0003315,2]
[339041093,1727166646833,-463.94332217,0.0003315,14]
[339041094,1727166646842,-500.0,0.0003315,14]
[339041095,1727166646852,-500.0,0.0003315,14]
[339041096,1727166646862,-500.0,0.0003315,14]
[339041097,1727166646872,-521.59923944,0.0003315,14]
[339041098,1727166646880,-519.36522152,0.0003315,14]
[339041099,1727166646890,-513.09400624,0.0003315,14]
[339041100,1727166646900,-500.0,0.0003315,14]
[339041101,1727166646910,-517.44330788,0.0003315,14]
[339041102,1727166646920,-927.59,0.0003315,14]
[339041103,1727166646931,-500.0,0.0003315,14]
[339041104,1727166646941,-500.0,0.0003315,2]
[339041105,1727166646952,-289.83270878,0.0003315,14]
[339041106,1727166646962,-508.88998352,0.0003315,14]
[339041107,1727166646971,-500.0,0.0003315,14]
[339041108,1727166646980,-500.0,0.0003315,14]
[339041109,1727166646990,-514.52626364,0.0003315,14]
[339041110,1727166646999,-500.0,0.0003315,14]
[339041111,1727166647008,-512.3266224,0.0003315,14]
[339041112,1727166647018,-500.0,0.0003315,14]
[339041113,1727166647027,-500.0,0.0003315,14]
[339041114,1727166647036,-180.38512712,0.0003315,14]
[339041115,1727166647046,-500.0,0.0003315,14]
[339041116,1727166647055,-457.49274073,0.0003315,14]
[339041117,1727166647064,-505.00376898,0.0003315,14]
[339041118,1727166647075,-151.0,0.0003315,14]
[339041119,1727166647084,-500.0,0.0003315,14]
[339041120,1727166647093,-151.0,0.0003315,14]
[339041121,1727166647103,-440.12230143,0.0003315,14]
[339041122,1727166647112,-502.7246316,0.0003315,14]
[339041123,1727166647122,-500.0,0.0003315,14]
[339041124,1727166647131,-601.23,0.0003315,14]
[339041125,1727166647141,-500.0,0.0003315,14]
[339041126,1727166647150,-500.0,0.0003315,14]
[339041127,1727166647159,-373.79634111,0.0003315,14]
[339041128,1727166647169,-322.42118266,0.0003315,14]
[339041129,1727166647178,-500.0,0.0003315,14]
[339041130,1727166647188,-500.0,0.0003315,14]
[339041131,1727166647197,-502.44741101,0.0003315,14]
[339041132,1727166647207,-498.52591958,0.0003315,14]
[339041133,1727166647216,-500.0,0.0003315,14]
[339041134,1727166647225,-639.66261931,0.0003315,14]
[339041135,1727166647235,-2917.05,0.0003315,120]
[339041136,1727166647244,-500.0,0.0003315,14]
[339041137,1727166647254,-500.0,0.0003315,14]
[339041138,1727166647263,-511.81923339,0.0003315,14]
[339041139,1727166647273,-590.81327432,0.0003315,14]
[339041140,1727166647282,-151.0,0.0003315,2]
[339041141,1727166647292,-500.0,0.0003315,14]
[339041142,1727166647301,-200.0,0.0003315,14]
[339041143,1727166647310,-507.7777203,0.0003315,5]
[339041144,1727166647320,-500.0,0.0003315,14]
[339041145,1727166647330,-500.0,0.0003315,14]
[339041146,1727166647339,-3000.0,0.0003315,14]
[339041147,1727166647349,-554.71312741,0.0003315,14]
[339041148,1727166647358,-500.0,0.0003315,14]
[339041149,1727166647368,-512.31833342,0.0003315,14]
[339041150,1727166647378,-961.53,0.0003315,14]
[339041151,1727166647388,-509.29915876,0.0003315,14]
[339041152,1727166647397,-505.79671683,0.0003315,14]
[339041153,1727166647407,-672.78,0.0003315,14]
[339041154,1727166647419,-765.35,0.0003315,2]
[339041155,1727166647429,-500.0,0.0003315,14]
[339041156,1727166647439,-506.89664647,0.0003315,14]
[339041157,1727166647449,-151.0,0.0003315,14]
[339041158,1727166647459,-151.0,0.0003315,14]
[339041159,1727166647468,-506.37382436,0.0003315,14]
[339041160,1727166647478,-500.0,0.0003315,14]
[339041161,1727166647487,-500.0,0.0003315,14]
[339041162,1727166647498,-500.0,0.0003315,10]
[339041163,1727166647509,-580.49,0.0003315,14]
[339041164,1727166647520,-500.0,0.0003315,14]
[339041165,1727166647530,-550.48841666,0.0003315,14]
[339041166,1727166647541,-512.04740295,0.0003315,14]
[339041167,1727166647551,-501.67610091,0.0003315,14]
[339041168,1727166647561,-507.96638608,0.0003315,14]
[339041169,1727166647570,-502.44482082,0.0003315,14]
[339041170,1727166647580,-501.28222272,0.0003315,14]
[339041171,1727166647589,-183.74445091,0.0003315,14]
[339041172,1727166647598,-500.80015904,0.0003315,14]
[339041173,1727166647608,-500.0,0.0003315,14]
[339041174,1727166647617,-509.73725617,0.0003315,14]
[339041175,1727166647627,-501.87814015,0.0003315,14]
[339041176,1727166647637,-500.0,0.0003315,14]
[339041177,1727166647647,-500.0,0.0003315,14]
[339041178,1727166647656,-500.0,0.0003315,14]
[339041179,1727166647668,-504.5494285,0.0003315,14]
[339041180,1727166647681,-500.0,0.0003315,14]
[339041181,1727166647690,-500.0,0.0003315,14]
[339041182,1727166647700,-500.0,0.0003315,14]
[339041183,1727166647709,-500.0,0.0003315,14]
[339041184,1727166647719,-500.0,0.0003315,14]
[339041185,1727166647729,-169.18019064,0.0003315,14]
[339041186,1727166647739,-500.0,0.0003315,14]
[339041187,1727166647750,-500.0,0.0003315,14]
[339041188,1727166647760,-500.0,0.0003315,14]
[339041189,1727166647770,-500.0,0.0003315,14]
[339041190,1727166647779,-500.0,0.0003315,14]
[339041191,1727166647789,-267.18095433,0.0003315,14]
[339041192,1727166647799,-500.0,0.0003315,14]
[339041193,1727166647809,-500.0,0.0003315,14]
[339041194,1727166647818,-500.0,0.0003315,14]
[339041195,1727166647828,-500.0,0.0003315,120]
[339041196,1727166647837,-500.0,0.0003315,14]
[339041197,1727166647846,-500.0,0.0003315,14]
[339041198,1727166647857,-500.0,0.0003315,14]
[339041199,1727166647868,-500.0,0.0003315,14]
[339041200,1727166647877,-501.51399275,0.0003315,14]
[339041201,1727166647886,-500.0,0.0003315,7]
[339041202,1727166647896,-193.80428964,0.0003315,14]
[339041203,1727166647905,-500.0,0.0003315,14]
[339041204,1727166647915,-509.67896629,0.0003315,14]
[339041205,1727166647925,-223.15331262,0.0003315,14]
[339041206,1727166647935,-500.0,0.0003315,14]
[339041207,1727166647945,-503.34756869,0.0003315,14]
[339041208,1727166647955,-500.0,0.0003315,14]
[339041209,1727166647966,-970.63,0.0003315,14]
[339041210,1727166648046,-500.0,0.0003315,14]
[339041211,1727166648056,-506.7685614,0.0003315,14]
[339041212,1727166648066,-500.0,0.0003315,14]
[339041213,1727166648076,-507.63975149,0.0003315,14]
[339041214,1727166648086,-511.66521746,0.0003315,14]
[339041215,1727166648096,-500.0,0.0003315,2]
[339041216,1727166648106,-511.77900058,0.0003315,14]
[339041217,1727166648116,-503.93147756,0.0003315,14]
[339041218,1727166648125,-1023.51,0.0003315,14]
[339041219,1727166648135,-500.0,0.0003315,14]
[339041220,1727166648145,-505.04422354,0.0003315,14]
[339041221,1727166648154,-959.95,0.0003315,14]
[339041222,1727166648165,-778.23,0.0003315,2]
[339041223,1727166648174,-500.0,0.0003315,14]
[339041224,1727166648183,-500.0,0.0003315,14]
[339041225,1727166648193,-500.0,0.0003315,14]
[339041226,1727166648202,-500.0,0.0003315,14]
[339041227,1727166648212,-500.0,0.0003315,14]
[339041228,1727166648222,-500.0,0.0003315,14]
[339041229,1727166648232,-1000.0,0.0003315,14]
[339041230,1727166648241,-500.0,0.0003315,14]
[339041231,1727166648251,-500.0,0.0003315,14]
[339041232,1727166648261,-500.0,0.0003315,14]
[339041233,1727166648270,-500.0,0.0003315,14]
[339041234,1727166648279,-597.5,0.0003315,14]
[339041235,1727166648288,-500.0,0.0003315,14]
[339041236,1727166648297,-500.0,0.0003315,14]
[339041237,1727166648307,-500.0,0.0003315,14]
[339041238,1727166648316,-570.25,0.0003315,14]
[339041239,1727166648325,-501.65847199,0.0003315,14]
[339041240,1727166648335,-500.0,0.0003315,14]
[339041241,1727166648345,-500.0,0.0003315,14]
[339041242,1727166648354,-500.0,0.0003315,14]
[339041243,1727166648363,-500.0,0.0003315,14]
[339041244,1727166648373,-576.96,0.0003315,7]
[339041245,1727166648382,-607.38,0.0003315,14]
[339041246,1727166648392,-500.0,0.0003315,14]
[339041247,1727166648401,-500.0,0.0003315,14]
[339041248,1727166648410,-500.0,0.0003315,14]
[339041249,1727166648429,-502.96762169,0.0003315,14]
[339041250,1727166648438,-500.0,0.0003315,14]
[339041251,1727166648448,-500.0,0.0003315,14]
[339041252,1727166648457,-500.0,0.0003315,14]
[339041253,1727166648467,-500.0,0.0003315,14]
[339041254,1727166648476,-500.0,0.0003315,14]
[339041255,1727166648486,-517.83874503,0.0003315,14]
[339041256,1727166648495,-5742.68,0.0003315,7]
[339041257,1727166648506,-500.0,0.0003315,14]
[339041258,1727166648517,-500.0,0.0003315,14]
[339041259,1727166648526,-500.0,0.0003315,14]
[339041260,1727166648536,-500.0,0.0003315,14]
[339041261,1727166648546,-151.0,0.0003315,14]
[339041262,1727166648556,-503.88593281,0.0003315,14]
[339041263,1727166648566,-616.68,0.0003315,14]
[339041264,1727166648575,-500.0,0.0003315,14]
[339041265,1727166648585,-500.0,0.0003315,14]
[339041266,1727166648595,-500.0,0.0003315,14]
[339041267,1727166648605,-234.372546,0.0003315,14]
[339041268,1727166648615,-501.67406974,0.0003315,14]
[339041269,1727166648624,-500.0,0.0003315,14]
[339041270,1727166648634,-500.0,0.0003315,14]
[339041271,1727166648643,-2022.01,0.0003315,14]
[339041272,1727166648653,-500.0,0.0003315,14]
[339041273,1727166648664,-500.0,0.0003315,14]
[339041274,1727166648677,-151.0,0.0003315,14]
[339041275,1727166648686,-1246.53,0.0003315,14]
[339041276,1727166648697,-624.2554436,0.0003315,14]
[339041277,1727166648707,-500.0,0.0003315,14]
[339041278,1727166648717,-500.0,0.0003315,14]
[339041279,1727166648727,-151.0,0.0003315,14]
[339041280,1727166648736,-517.07105845,0.0003315,14]
[339041281,1727166648746,-500.0,0.0003315,14]
[339041282,1727166648755,-500.0,0.0003315,14]
[339041283,1727166648765,-528.59636784,0.0003315,14]
[339041284,1727166648774,-537.54185501,0.0003315,14]
[339041285,1727166648783,-392.312935,0.0003315,14]
[339041286,1727166648793,-882.06,0.0003315,7]
[339041287,1727166648803,-500.0,0.0003315,14]
[339041288,1727166648813,-500.0,0.0003315,14]
[339041289,1727166648822,-500.0,0.0003315,14]
[339041290,1727166648832,-392.312935,0.0003315,14]
[339041291,1727166648841,-500.0,0.0003315,14]
[339041292,1727166648851,-505.09,0.0003315,14]
[339041293,1727166648860,-520.8033835,0.0003315,14]
[339041294,1727166648870,-500.0,0.0003315,14]
[339041295,1727166648880,-500.0,0.0003315,14]
[339041296,1727166648889,-500.0,0.0003315,14]
[339041297,1727166648900,-520.67425044,0.0003315,14]
[339041298,1727166648909,-500.0,0.0003315,14]
[339041299,1727166648920,-545.2033829,0.0003315,14]
[339041300,1727166648930,-151.0,0.0003315,14]
[339041301,1727166648939,-500.0,0.0003315,14]
[339041302,1727166648949,-578.31364394,0.0003315,14]
[339041303,1727166648959,-500.0,0.0003315,14]
[339041304,1727166648969,-500.0,0.0003315,14]
[339041305,1727166648978,-500.0,0.0003315,14]
[339041306,1727166648987,-500.0,0.0003315,14]
[339041307,1727166648997,-500.0,0.0003315,2]
[339041308,1727166649006,-151.0,0.0003315,14]
[339041309,1727166649016,-3000.0,0.0003316,14]
[339041310,1727166649026,-500.0,0.00033165,2]
[339041311,1727166649035,-3000.0,0.0003317,14]
[339041312,1727166649045,-153.0,0.00033178,2]